bitfinex-derivatives/quotes_BTCF0:USTF0_20241210
["timestamp","ask_amount","ask_price","bid_price","bid_amount"]
[1733841469554,0.02280346,97587.0,97586.0,0.3608]
[1733841469555,0.25766032,97587.0,97586.0,0.3608]
[1733841469751,0.02180346,97587.0,97586.0,0.3608]
[1733841470350,0.001,97587.0,97586.0,0.3608]
[1733841470652,0.002,97587.0,97586.0,0.3608]
[1733841471341,1e-06,97587.0,97586.0,0.7216]
[1733841471746,0.001001,97587.0,97586.0,0.7216]
[1733841471942,1e-06,97587.0,97586.0,0.7216]
[1733841472147,0.002001,97587.0,97586.0,0.7216]
[1733841472444,0.002,97587.0,97586.0,0.7216]
[1733841472651,0.005,97587.0,97586.0,0.7216]
[1733841473453,0.1,97600.0,97599.0,0.051206]
[1733841473651,0.1,97600.0,97599.0,0.412006]
[1733841473845,0.09072595,97634.0,97599.0,0.6608]
[1733841474050,0.23385686,97640.0,97633.0,0.3608]
[1733841474255,0.23385686,97640.0,97637.0,0.051186]
[1733841474551,0.23385686,97640.0,97633.0,0.3608]
[1733841474552,8.3e-07,97639.0,97638.0,0.051186]
[1733841476350,0.00300083,97639.0,97638.0,0.051186]
[1733841476754,0.00300083,97639.0,97638.0,0.411986]
[1733841477958,0.00500083,97639.0,97638.0,0.411986]
[1733841478164,8.3e-07,97639.0,97638.0,0.411986]
[1733841478454,0.01303684,97679.0,97643.0,0.051183]
[1733841478666,0.01303684,97679.0,97637.0,0.051186]
[1733841478667,0.28502086,97680.0,97673.0,0.051167]
[1733841478850,0.28502086,97680.0,97665.0,0.3608]
[1733841478851,0.3608,97674.0,97665.0,0.3608]
[1733841479159,8.355e-05,97673.0,97672.0,0.051168]
[1733841481752,8.355e-05,97673.0,97665.0,0.007]
[1733841481954,8.355e-05,97673.0,97667.0,0.051171]
[1733841482148,8.355e-05,97673.0,97665.0,0.007]
[1733841482353,8.355e-05,97673.0,97672.0,0.051168]
[1733841483151,0.01334802,97673.0,97672.0,0.051168]
[1733841483353,0.00208355,97673.0,97672.0,0.060168]
[1733841484660,0.00208355,97673.0,97672.0,0.420968]
[1733841484851,0.09072595,97723.0,97672.0,0.420968]
[1733841484852,0.23385686,97710.0,97672.0,0.420968]
[1733841485159,0.23385686,97710.0,97699.0,0.051154]
[1733841485362,0.0926,97709.0,97692.0,0.051158]
[1733841485550,0.3608,97694.0,97681.0,0.3608]
[1733841485754,0.008,97673.0,97672.0,0.061168]
[1733841486055,0.00808411,97673.0,97672.0,0.061168]
[1733841486254,0.00708411,97673.0,97672.0,0.052168]
[1733841486759,8.411e-05,97673.0,97672.0,0.051168]
[1733841486961,0.00408411,97673.0,97672.0,0.051168]
[1733841487356,0.00408411,97673.0,97671.0,0.3608]
[1733841487562,0.00408411,97673.0,97662.0,0.3608]
[1733841488066,0.00408411,97673.0,97672.0,0.411968]
[1733841488250,0.00408411,97673.0,97672.0,0.051168]
[1733841488451,0.00608411,97673.0,97672.0,0.051168]
[1733841489364,0.00608411,97673.0,97662.0,0.3608]
[1733841489365,0.00708411,97673.0,97662.0,0.3608]
[1733841489568,0.00708411,97673.0,97672.0,0.051168]
[1733841490464,0.00708411,97673.0,97671.0,0.3608]
[1733841490465,0.00308411,97673.0,97671.0,0.3608]
[1733841490665,0.00308411,97673.0,97662.0,0.3608]
[1733841490866,0.28502586,97672.0,97662.0,0.411973]
[1733841491063,0.05117,97669.0,97662.0,0.3608]
[1733841491258,0.051178,97654.0,97653.0,0.36233605]
[1733841491459,0.051179,97652.0,97628.0,0.3608]
[1733841491669,0.23385686,97650.0,97628.0,0.3608]
[1733841491867,0.051187,97637.0,97620.0,0.051195]
[1733841492058,0.051187,97637.0,97623.0,0.051194]
[1733841492370,0.34408,97636.0,97623.0,0.051194]
[1733841492563,0.44098,97636.0,97616.0,0.411998]
[1733841492758,0.46160498,97636.0,97616.0,0.3608]
[1733841492966,0.46160498,97636.0,97600.0,0.051206]
[1733841492967,0.051197,97617.0,97600.0,0.051206]
[1733841493175,0.23385686,97626.0,97607.0,0.3608]
[1733841493465,0.23385686,97626.0,97618.0,0.3608]
[1733841493658,0.0001111,97625.0,97624.0,0.411993]
[1733841494061,0.0001111,97625.0,97624.0,0.3608]
[1733841495169,0.0001111,97625.0,97623.0,0.051194]
[1733841495362,0.0001111,97625.0,97616.0,0.002]
[1733841495561,0.0001111,97625.0,97606.0,0.3608]
[1733841495870,0.3608,97619.0,97606.0,0.3608]
[1733841496074,0.3608,97619.0,97608.0,0.051201]
[1733841496269,0.3608,97619.0,97606.0,0.3608]
[1733841496475,0.411996,97619.0,97606.0,0.3608]
[1733841496666,0.3608,97619.0,97608.0,0.051202]
[1733841496862,0.3608,97619.0,97600.0,0.3608]
[1733841497066,0.3608,97619.0,97593.0,0.0001068]
[1733841497268,0.3608,97606.0,97594.0,0.051209]
[1733841497468,0.3608,97606.0,97593.0,0.0001068]
[1733841497664,0.3608,97606.0,97574.0,0.00153717]
[1733841497665,0.3608,97597.0,97574.0,0.00153717]
[1733841497965,0.3608,97575.0,97574.0,0.00153717]
[1733841498572,0.59465686,97584.0,97557.0,0.3608]
[1733841498775,0.23385686,97580.0,97579.0,0.051217]
[1733841498981,0.00011196,97583.0,97579.0,0.051217]
[1733841499977,0.00011196,97583.0,97574.0,0.01]
[1733841500278,0.00011196,97583.0,97582.0,0.051215]
[1733841500868,0.00211196,97583.0,97582.0,0.051215]
[1733841501676,0.23385686,97600.0,97598.0,0.051207]
[1733841501874,0.3608,97615.0,97579.0,0.3608]
[1733841501875,0.23385686,97608.0,97600.0,0.051206]
[1733841502078,0.23385686,97610.0,97600.0,0.051206]
[1733841502376,0.23385686,97610.0,97599.0,0.3608]
[1733841502377,0.02076521,97604.0,97582.0,0.002]
[1733841502679,0.28506986,97587.0,97582.0,0.002]
[1733841502974,0.412014,97584.0,97582.0,0.002]
[1733841503178,0.3608,97584.0,97554.0,0.05276765]
[1733841503384,0.3608,97558.0,97545.0,0.3608]
[1733841503575,0.23385686,97550.0,97545.0,0.3608]
[1733841503969,0.23385686,97550.0,97537.0,0.3608]
[1733841504169,0.23385686,97550.0,97541.0,0.051237]
[1733841504367,0.23385686,97550.0,97545.0,0.3608]
[1733841504972,0.051234,97546.0,97526.0,0.3608]
[1733841505174,0.3608,97541.0,97525.0,0.00153813]
[1733841505678,0.051242,97532.0,97525.0,0.00153813]
[1733841506281,0.051245,97527.0,97525.0,0.00153813]
[1733841506471,0.3608,97533.0,97525.0,0.00153813]
[1733841506671,0.051245,97527.0,97525.0,0.00153813]
[1733841507081,0.051245,97526.0,97525.0,0.009]
[1733841508577,0.051245,97526.0,97507.0,0.3608]
[1733841508578,0.051247,97522.0,97507.0,0.3608]
[1733841508886,0.23385686,97517.0,97507.0,0.3608]
[1733841509981,0.23385686,97517.0,97507.0,0.3678]
[1733841510976,0.23385686,97517.0,97507.0,0.3698]
[1733841511379,0.001,97517.0,97516.0,0.3608]
[1733841511581,0.001,97517.0,97516.0,0.41205]
[1733841511783,0.001,97517.0,97507.0,0.37056]
[1733841511784,0.001,97517.0,97507.0,0.00776]
[1733841511997,0.3608,97516.0,97507.0,0.009]
[1733841512483,0.3608,97516.0,97507.0,0.002]
[1733841512780,0.3608,97516.0,97505.0,0.0015384]
[1733841513191,0.051255,97506.0,97505.0,0.0015384]
[1733841513379,1.201255,97506.0,97505.0,0.0015384]
[1733841513687,1.201255,97506.0,97500.0,0.1]
[1733841513688,1.15,97506.0,97500.0,0.1]
[1733841513881,1.15,97506.0,97500.0,0.0908698]
[1733841513882,0.051258,97501.0,97500.0,0.0908698]
[1733841514484,0.051263,97492.0,97469.0,0.00153909]
[1733841514682,0.412063,97492.0,97469.0,0.00153909]
[1733841514983,0.3608,97492.0,97469.0,0.00153909]
[1733841515187,1.5108,97492.0,97478.0,0.3608]
[1733841515378,1.5108,97492.0,97477.0,0.05127]
[1733841515888,1.5108,97492.0,97469.0,0.00153909]
[1733841516279,1.81091904,97492.0,97469.0,0.00153909]
[1733841516582,0.3608,97470.0,97444.0,0.3608]
[1733841516779,0.23385686,97454.0,97445.0,0.00153947]
[1733841516982,0.23385686,97454.0,97427.0,0.3608]
[1733841516983,0.051286,97448.0,97427.0,0.3608]
[1733841517186,0.3608,97452.0,97427.0,0.3608]
[1733841517187,0.59465686,97443.0,97427.0,0.3608]
[1733841517382,0.64594486,97443.0,97427.0,0.3608]
[1733841517581,8.797e-05,97442.0,97427.0,0.3608]
[1733841517982,8.797e-05,97442.0,97441.0,0.05129]
[1733841518277,8.797e-05,97442.0,97435.0,0.3608]
[1733841518482,8.797e-05,97442.0,97427.0,0.015]
[1733841518483,0.05129,97440.0,97427.0,0.015]
[1733841518685,0.23385686,97437.0,97427.0,0.015]
[1733841519085,0.3608,97428.0,97427.0,0.006]
[1733841519297,1.8554,97428.0,97405.0,0.0015401]
[1733841519482,0.412108,97406.0,97405.0,0.0015401]
[1733841519680,0.3608,97406.0,97405.0,0.0015401]
[1733841520085,0.412108,97406.0,97405.0,0.0015401]
[1733841520383,0.42828755,97406.0,97405.0,0.0015401]
[1733841520586,1.57828755,97406.0,97405.0,0.0015401]
[1733841520782,0.01617955,97406.0,97405.0,0.0015401]
[1733841520985,0.3608,97414.0,97405.0,0.0015401]
[1733841521187,0.23385686,97415.0,97408.0,0.3608]
[1733841521387,0.23385686,97415.0,97408.0,0.412107]
[1733841521589,0.24985542,97415.0,97405.0,0.0025401]
[1733841521892,0.24985542,97415.0,97408.0,0.051307]
[1733841522389,0.24985542,97415.0,97405.0,0.0015401]
[1733841522390,0.0205128,97409.0,97405.0,0.0015401]
[1733841522688,0.0718188,97409.0,97400.0,0.1]
[1733841524087,0.3608,97405.0,97400.0,0.1]
[1733841524289,0.00012371,97408.0,97404.0,0.3609178]
[1733841524495,0.00012371,97408.0,97406.0,0.051307]
[1733841525189,0.00012371,97408.0,97404.0,0.0001178]
[1733841525190,0.00012371,97408.0,97404.0,0.3609178]
[1733841525386,0.00012371,97408.0,97404.0,0.0031178]
[1733841526084,0.00012371,97408.0,97406.0,0.002]
[1733841526487,0.00112371,97408.0,97406.0,0.002]
[1733841527080,0.00112371,97408.0,97405.0,0.051308]
[1733841527687,0.00112371,97408.0,97404.0,0.0031178]
[1733841528092,0.00112371,97408.0,97406.0,0.051308]
[1733841528282,0.00012371,97408.0,97406.0,0.051308]
[1733841528482,0.23385686,97430.0,97429.0,0.051296]
[1733841528779,0.23385686,97439.0,97429.0,0.051296]
[1733841528984,0.23385686,97439.0,97427.0,0.3608]
[1733841529187,0.3608,97436.0,97413.0,0.3608]
[1733841529493,0.3608,97428.0,97413.0,0.3608]
[1733841529789,0.23385686,97431.0,97423.0,0.051299]
[1733841529990,0.25404373,97431.0,97429.0,0.001]
[1733841530196,0.02018687,97431.0,97429.0,0.002]
[1733841530887,0.02018687,97431.0,97430.0,0.3608]
[1733841531793,0.005,97431.0,97430.0,0.3608]
[1733841532189,8.321e-05,97435.0,97430.0,0.3608]
[1733841532190,8.321e-05,97435.0,97434.0,0.051293]
[1733841533490,0.00908321,97435.0,97434.0,0.052293]
[1733841534098,0.70568,97458.0,97434.0,0.052293]
[1733841534099,0.70568,97458.0,97434.0,0.301]
[1733841534390,0.72283771,97458.0,97451.0,0.3608]
[1733841534594,0.3615177,97458.0,97451.0,0.3608]
[1733841535187,0.3615177,97458.0,97456.0,0.051282]
[1733841535188,8.799e-05,97457.0,97456.0,0.051282]
[1733841536394,8.799e-05,97457.0,97455.0,0.3608]
[1733841536395,8.799e-05,97457.0,97439.0,0.3608]
[1733841536583,8.799e-05,97457.0,97456.0,0.007]
[1733841536584,0.05236899,97457.0,97456.0,0.007]
[1733841536786,0.051289,97442.0,97428.0,0.051296]
[1733841536990,0.3608,97429.0,97428.0,0.051296]
[1733841537190,0.23385686,97438.0,97420.0,0.3608]
[1733841537395,0.412084,97451.0,97441.0,0.051289]
[1733841537592,0.412084,97451.0,97420.0,0.3608]
[1733841537593,0.3608,97451.0,97420.0,0.3608]
[1733841537895,0.23385686,97440.0,97436.0,0.051292]
[1733841538194,0.23385686,97440.0,97420.0,0.3608]
[1733841538195,0.23385686,97450.0,97445.0,0.051287]
[1733841538598,0.23385686,97450.0,97446.0,0.051286]
[1733841538899,0.001,97451.0,97450.0,0.051285]
[1733841539090,0.001,97451.0,97443.0,0.051288]
[1733841539291,0.001,97451.0,97434.0,0.051293]
[1733841539292,0.051289,97442.0,97434.0,0.051293]
[1733841539592,0.3608,97435.0,97434.0,0.051293]
[1733841540493,0.3608,97444.0,97428.0,0.3608]
[1733841540795,0.3608,97444.0,97414.0,0.09]
[1733841540796,0.051297,97427.0,97414.0,0.09]
[1733841540996,0.051297,97427.0,97420.0,0.0513]
[1733841541295,0.23385686,97430.0,97414.0,0.09]
[1733841541493,0.79,97429.0,97423.0,0.051299]
[1733841541685,0.23385686,97430.0,97414.0,0.09]
[1733841541891,0.23385686,97430.0,97424.0,0.051298]
[1733841542495,0.0513,97422.0,97404.0,0.0001178]
[1733841542797,0.3608,97425.0,97387.0,0.051318]
[1733841542798,0.05131,97403.0,97387.0,0.051318]
[1733841543005,0.3608,97401.0,97387.0,0.051318]
[1733841543295,0.3608,97401.0,97392.0,0.051315]
[1733841543496,0.3608,97401.0,97380.0,0.3608]
[1733841543799,0.3608,97401.0,97397.0,0.051312]
[1733841543800,0.36088884,97401.0,97397.0,0.051312]
[1733841543998,0.36088884,97401.0,97388.0,0.3608]
[1733841544192,0.36088884,97401.0,97400.0,0.151311]
[1733841544897,0.36088884,97401.0,97400.0,0.1]
[1733841545089,0.36288884,97401.0,97400.0,0.1]
[1733841545491,0.36288884,97401.0,97400.0,0.104]
[1733841546091,0.36488884,97401.0,97400.0,0.1]
[1733841547388,0.36488884,97401.0,97400.0,0.151311]
[1733841547595,0.36188884,97401.0,97400.0,0.151311]
[1733841547795,0.36488884,97401.0,97400.0,0.1]
[1733841547996,0.41619984,97401.0,97400.0,0.1]
[1733841548199,0.41519984,97401.0,97400.0,0.1]
[1733841548393,0.53666643,97401.0,97400.0,0.1]
[1733841548595,0.53366643,97401.0,97400.0,0.1]
[1733841548794,0.36088884,97401.0,97400.0,0.1]
[1733841549103,0.36088884,97401.0,97400.0,0.104]
[1733841549699,0.45269174,97401.0,97400.0,0.104]
[1733841550098,0.50700274,97401.0,97400.0,0.1]
[1733841550389,0.36388884,97401.0,97400.0,0.1]
[1733841550597,0.36688884,97401.0,97400.0,0.1]
[1733841551691,0.48535543,97401.0,97400.0,0.1]
[1733841551896,0.36688884,97401.0,97400.0,0.1]
[1733841552196,0.36388884,97401.0,97400.0,0.1]
[1733841552500,0.81772208,97401.0,97400.0,0.07134]
[1733841552701,0.81772208,97401.0,97381.0,0.02]
[1733841552702,0.051321,97382.0,97381.0,0.02]
[1733841553001,0.772921,97382.0,97381.0,0.02]
[1733841553392,0.772921,97382.0,97367.0,0.00162661]
[1733841553393,0.051328,97368.0,97367.0,0.00162661]
[1733841553706,0.051337,97352.0,97332.0,0.0935]
[1733841553902,0.3608,97333.0,97317.0,0.18220145]
[1733841554095,0.23385686,97327.0,97313.0,0.0935]
[1733841554493,0.23385686,97327.0,97322.0,0.051352]
[1733841554700,0.3608,97323.0,97313.0,0.0935]
[1733841554896,0.3608,97323.0,97320.0,0.051353]
[1733841555202,0.3608,97323.0,97313.0,0.0935]
[1733841555203,8.172e-05,97322.0,97313.0,0.0935]
[1733841555394,0.3608,97315.0,97313.0,0.009]
[1733841555599,0.345,97314.0,97313.0,0.018]
[1733841555902,0.345,97314.0,97308.0,0.00013202]
[1733841556104,0.3608,97312.0,97308.0,0.00013202]
[1733841556492,0.3608,97312.0,97300.0,0.1]
[1733841556493,0.051362,97303.0,97300.0,0.1]
[1733841556697,0.3608,97301.0,97300.0,0.1]
[1733841556903,0.412163,97301.0,97300.0,0.1]
[1733841557699,0.41227667,97301.0,97274.0,0.051377]
[1733841557894,0.23385686,97284.0,97274.0,0.051377]
[1733841558099,0.23385686,97284.0,97277.0,0.051371]
[1733841558405,0.3608,97293.0,97287.0,0.051365]
[1733841558604,0.3608,97293.0,97288.0,0.051365]
[1733841558908,0.051371,97277.0,97249.0,0.3608]
[1733841559108,0.3608,97292.0,97225.0,0.01]
[1733841559109,0.412181,97258.0,97225.0,0.01]
[1733841559405,0.00012682,97257.0,97234.0,0.051394]
[1733841559914,0.00012682,97257.0,97256.0,0.05146205]
[1733841560099,0.00012682,97257.0,97256.0,0.35146205]
[1733841560297,0.3608,97281.0,97265.0,0.051377]
[1733841560605,0.23385686,97275.0,97266.0,0.051376]
[1733841560805,0.23385686,97275.0,97256.0,8.005e-05]
[1733841561108,0.23385686,97266.0,97265.0,0.3608]
[1733841561310,9.605e-05,97266.0,97265.0,0.412177]
[1733841561605,9.605e-05,97266.0,97265.0,0.3608]
[1733841561806,9.605e-05,97266.0,97256.0,8.005e-05]
[1733841562014,0.23395291,97266.0,97256.0,8.005e-05]
[1733841562204,0.001,97257.0,97256.0,0.00308005]
[1733841562709,0.052381,97257.0,97256.0,0.00308005]
[1733841563109,0.3608,97260.0,97256.0,8.005e-05]
[1733841563410,0.3608,97260.0,97221.0,0.0915]
[1733841563411,0.3608,97257.0,97200.0,0.1]
[1733841563606,0.3608,97202.0,97200.0,0.1]
[1733841563808,0.22709598,97202.0,97200.0,0.1]
[1733841564403,0.00011368,97201.0,97200.0,0.1]
[1733841565418,0.00011368,97201.0,97200.0,0.103]
[1733841565612,0.00011368,97201.0,97200.0,0.106]
[1733841566411,0.23385686,97210.0,97200.0,0.4668]
[1733841566617,0.23385686,97230.0,97209.0,0.3608]
[1733841566811,0.23385686,97240.0,97237.0,0.051392]
[1733841567010,0.23385686,97240.0,97239.0,0.3608]
[1733841567204,0.3608,97284.0,97239.0,0.3608]
[1733841567205,0.23385686,97249.0,97247.0,0.051386]
[1733841567509,0.3608,97284.0,97239.0,0.3608]
[1733841567510,0.23385686,97270.0,97269.0,0.051375]
[1733841567713,0.00013359,97270.0,97269.0,0.412175]
[1733841568008,0.00013359,97270.0,97269.0,0.3608]
[1733841568211,0.00013359,97270.0,97249.0,0.3608]
[1733841568212,0.051384,97253.0,97249.0,0.3608]
[1733841568409,0.051384,97253.0,97240.0,0.1863]
[1733841568410,0.3608,97250.0,97240.0,0.0947]
[1733841568611,0.23385686,97250.0,97249.0,0.051386]
[1733841568808,0.08463352,97270.0,97258.0,0.051381]
[1733841568809,0.23385686,97259.0,97258.0,0.051381]
[1733841569105,0.08463352,97270.0,97266.0,0.051377]
[1733841569309,0.08463352,97270.0,97269.0,0.412175]
[1733841569504,0.08563352,97270.0,97269.0,0.412175]
[1733841570008,0.08563352,97270.0,97269.0,0.051375]
[1733841570210,0.08563352,97270.0,97269.0,0.412175]
[1733841570411,0.34544,97288.0,97287.0,0.051366]
[1733841570614,0.00056001,97306.0,97305.0,0.051356]
[1733841570910,0.34544,97315.0,97302.0,0.3608]
[1733841571115,1.5,97340.0,97338.0,0.051338]
[1733841571303,0.34544,97349.0,97338.0,0.3608]
[1733841571611,0.0003,97384.0,97338.0,0.3608]
[1733841571612,0.00012233,97348.0,97347.0,0.051334]
[1733841571816,0.00012233,97348.0,97306.0,0.36091908]
[1733841572014,0.23385686,97329.0,97306.0,0.36091908]
[1733841572208,0.23385686,97330.0,97316.0,0.3608]
[1733841572402,0.23385686,97330.0,97322.0,0.051347]
[1733841572808,0.3608,97328.0,97306.0,0.36091908]
[1733841573103,0.23385686,97330.0,97314.0,0.4571]
[1733841573418,0.051351,97316.0,97314.0,0.3608]
[1733841573617,0.051351,97316.0,97306.0,0.00011908]
[1733841573804,0.23485686,97330.0,97306.0,0.00011908]
[1733841574116,0.23385686,97320.0,97306.0,0.00011908]
[1733841574509,0.051352,97313.0,97306.0,0.00011908]
[1733841574713,0.23385686,97320.0,97306.0,0.00011908]
[1733841574714,0.051355,97307.0,97306.0,0.00011908]
[1733841574913,0.3608,97307.0,97271.0,0.0945]
[1733841575110,0.3608,97272.0,97260.0,0.00154241]
[1733841575414,0.051375,97269.0,97260.0,0.00154241]
[1733841575715,0.36092,97272.0,97270.0,0.051374]
[1733841575917,0.36092,97272.0,97261.0,0.051379]
[1733841576215,0.00012,97262.0,97260.0,0.00154241]
[1733841576517,0.00012,97261.0,97260.0,0.005]
[1733841576916,0.00012,97261.0,97260.0,0.05138]
[1733841577122,9.353e-05,97271.0,97261.0,0.005]
[1733841577421,0.3608,97262.0,97261.0,0.005]
[1733841577623,0.3608,97262.0,97255.0,0.051382]
[1733841577916,0.3608,97262.0,97254.0,7.789e-05]
[1733841577917,0.3608,97262.0,97261.0,0.001]
[1733841578717,0.00061354,97271.0,97260.0,0.005]
[1733841578911,9.353e-05,97271.0,97269.0,0.051375]
[1733841579116,9.353e-05,97271.0,97270.0,0.00024]
[1733841579514,0.3608,97296.0,97294.0,0.051361]
[1733841579712,0.00052001,97308.0,97293.0,0.3608]
[1733841579913,0.3454,97313.0,97301.0,0.3608]
[1733841580217,0.3454,97313.0,97295.0,6e-05]
[1733841580412,0.23385686,97311.0,97303.0,0.051357]
[1733841580716,0.23385686,97311.0,97279.0,0.3608]
[1733841580717,0.3608,97309.0,97279.0,0.3608]
[1733841580920,8.719e-05,97312.0,97311.0,0.051353]
[1733841581511,8.719e-05,97312.0,97299.0,0.3608]
[1733841581719,0.051354,97309.0,97302.0,0.051357]
[1733841582015,0.36088719,97312.0,97308.0,0.051354]
[1733841582219,0.41223919,97312.0,97294.0,0.001]
[1733841582529,8.719e-05,97312.0,97311.0,6e-05]
[1733841582814,8.719e-05,97312.0,97311.0,0.051413]
[1733841583916,0.00108719,97312.0,97311.0,0.051413]
[1733841584720,0.05243919,97312.0,97311.0,6e-05]
[1733841585018,0.00108719,97312.0,97311.0,6e-05]
[1733841585316,0.00108719,97312.0,97311.0,0.051413]
[1733841586422,1.9e-07,97312.0,97311.0,0.051413]
[1733841586618,0.00100019,97312.0,97311.0,0.150113]
[1733841586818,0.3608,97331.0,97330.0,0.051343]
[1733841587216,0.00052001,97349.0,97330.0,6e-05]
[1733841587411,0.3608,97372.0,97365.0,0.051324]
[1733841587614,0.3608,97372.0,97340.0,0.3608]
[1733841587615,0.051322,97370.0,97367.0,0.051323]
[1733841587911,0.051322,97370.0,97340.0,0.3608]
[1733841587912,9.476e-05,97371.0,97369.0,0.051322]
[1733841588312,9.476e-05,97371.0,97355.0,0.3608]
[1733841588512,9.476e-05,97371.0,97347.0,0.0947]
[1733841588513,0.051322,97369.0,97347.0,0.0947]
[1733841588715,0.23385686,97360.0,97347.0,0.0947]
[1733841589020,0.3608,97348.0,97336.0,0.3608]
[1733841589221,0.3608,97348.0,97293.0,0.54659968]
[1733841589222,1.7616,97337.0,97311.0,0.003]
[1733841589521,0.3608,97323.0,97322.0,0.051347]
[1733841589916,0.23385686,97330.0,97328.0,0.051344]
[1733841590416,0.00013201,97329.0,97328.0,0.051344]
[1733841590618,0.00013201,97329.0,97326.0,0.051345]
[1733841590828,0.00013201,97329.0,97316.0,0.3608]
[1733841591012,0.00012,97327.0,97324.0,0.051346]
[1733841591218,0.00012,97327.0,97316.0,0.3608]
[1733841591219,0.00012,97317.0,97316.0,0.41215]
[1733841591512,0.00024,97317.0,97316.0,0.41215]
[1733841591914,0.00024,97317.0,97316.0,0.42115]
[1733841592315,0.00113201,97329.0,97328.0,0.051344]
[1733841592638,0.00113201,97329.0,97328.0,0.412144]
[1733841593125,0.00113201,97329.0,97316.0,0.01176]
[1733841593126,0.36080001,97329.0,97316.0,0.01176]
[1733841593321,0.3608,97317.0,97316.0,0.011]
[1733841593524,0.3608,97317.0,97316.0,0.008]
[1733841593525,0.36192,97317.0,97316.0,0.008]
[1733841593715,0.36192,97317.0,97316.0,0.006]
[1733841594323,0.00119517,97317.0,97316.0,0.006]
[1733841594521,0.00119517,97317.0,97316.0,0.05735]
[1733841594722,0.00119517,97317.0,97316.0,0.006]
[1733841595319,0.00019517,97317.0,97315.0,0.05135]
[1733841595528,0.00019517,97317.0,97316.0,0.001]
[1733841595827,7.517e-05,97317.0,97316.0,0.001]
[1733841596221,7.517e-05,97317.0,97316.0,0.002]
[1733841597324,1.7e-07,97317.0,97316.0,0.002]
[1733841598219,1.7e-07,97317.0,97316.0,0.0978]
[1733841599225,0.23385686,97350.0,97348.0,0.051333]
[1733841599528,0.3608,97357.0,97355.0,0.051329]
[1733841599724,0.0917772,97365.0,97355.0,0.3608]
[1733841600023,0.23385686,97370.0,97369.0,0.051322]
[1733841600231,0.00011822,97370.0,97369.0,0.051322]
[1733841600428,0.00011822,97370.0,97369.0,0.051382]
[1733841602438,0.00011822,97370.0,97369.0,6e-05]
[1733841602439,0.41224022,97370.0,97369.0,6e-05]
[1733841602929,0.41224022,97370.0,97369.0,0.00106]
[1733841602930,0.36591822,97370.0,97369.0,0.00106]
[1733841603130,0.00511822,97370.0,97369.0,0.052382]
[1733841603927,2.2e-07,97370.0,97369.0,0.052382]
[1733841605024,0.00012988,97370.0,97369.0,0.352382]
[1733841605231,0.4608,97400.0,97369.0,0.352382]
[1733841605232,0.1,97400.0,97399.0,0.051307]
[1733841606028,0.4608,97400.0,97399.0,0.051307]
[1733841606328,0.10010916,97400.0,97399.0,0.051367]
[1733841606725,1.6e-07,97400.0,97399.0,0.051367]
[1733841607033,0.00900016,97400.0,97399.0,0.052367]
[1733841607936,0.00100016,97400.0,97399.0,0.066367]
[1733841609020,1.6e-07,97400.0,97399.0,0.066367]
[1733841609220,1.6e-07,97400.0,97399.0,0.427167]
[1733841609622,1.6e-07,97400.0,97399.0,0.425167]
[1733841609830,1.6e-07,97400.0,97399.0,0.7647802]
[1733841610031,1.6e-07,97400.0,97399.0,0.425167]
[1733841610331,0.00012097,97400.0,97399.0,0.425167]
[1733841610528,0.00012097,97400.0,97399.0,0.421167]
[1733841610728,0.00012097,97400.0,97399.0,0.426167]
[1733841610923,0.00012097,97400.0,97399.0,0.423167]
[1733841610924,0.00112081,97400.0,97399.0,0.423167]
[1733841611127,0.02104116,97429.0,97428.0,0.051291]
[1733841611431,0.23385686,97460.0,97452.0,0.051279]
[1733841611628,0.36593067,97453.0,97452.0,0.051279]
[1733841611823,0.36593067,97453.0,97452.0,0.051339]
[1733841612025,0.00513067,97453.0,97452.0,0.412139]
[1733841612220,0.00520902,97453.0,97452.0,0.412139]
[1733841612932,0.05135635,97453.0,97452.0,6e-05]
[1733841613634,0.35135635,97453.0,97452.0,5.41e-06]
[1733841613834,0.35135635,97453.0,97428.0,0.001]
[1733841613835,0.051285,97439.0,97428.0,0.001]
[1733841614028,0.051285,97439.0,97392.0,0.3608]
[1733841614029,0.051303,97406.0,97392.0,0.3608]
[1733841614233,0.412106,97401.0,97381.0,0.412116]
[1733841614427,0.345,97400.0,97379.0,0.00154016]
[1733841614748,6e-05,97380.0,97379.0,0.00154016]
[1733841615033,0.00013514,97380.0,97379.0,0.00154016]
[1733841616340,0.66093514,97380.0,97379.0,0.00154016]
[1733841616530,0.66093514,97380.0,97345.0,0.051335]
[1733841616726,0.66093514,97380.0,97337.0,0.3608]
[1733841616727,0.23385686,97352.0,97337.0,0.3608]
[1733841616931,6e-05,97346.0,97337.0,0.3608]
[1733841617225,0.59465686,97370.0,97342.0,0.05144993]
[1733841617443,0.23385686,97352.0,97345.0,0.3608]
[1733841617635,0.23385686,97352.0,97342.0,0.00011293]
[1733841617834,0.23385686,97352.0,97350.0,0.051332]
[1733841618035,0.3608,97359.0,97342.0,0.00011293]
[1733841618231,0.3608,97343.0,97342.0,0.00011293]
[1733841618540,0.3608,97349.0,97347.0,0.051334]
[1733841618933,0.3608,97349.0,97348.0,6e-05]
[1733841619136,9.044e-05,97358.0,97348.0,6e-05]
[1733841619435,9.044e-05,97358.0,97357.0,6e-05]
[1733841620933,9.044e-05,97358.0,97357.0,0.00306]
[1733841621335,0.05241844,97358.0,97357.0,0.00306]
[1733841621833,0.051329,97357.0,97342.0,0.00011293]
[1733841622039,0.3608,97343.0,97342.0,0.00011293]
[1733841622840,0.051353,97311.0,97300.0,0.1]
[1733841623037,0.7216,97301.0,97300.0,0.1]
[1733841623239,0.72166,97301.0,97300.0,0.1]
[1733841623737,0.72176608,97301.0,97300.0,0.1]
[1733841623929,0.77312408,97301.0,97300.0,0.109]
[1733841624128,0.77312408,97301.0,97265.0,0.00010687]
[1733841624129,1.08813302,97301.0,97265.0,0.00010687]
[1733841624335,0.3608,97266.0,97265.0,0.00010687]
[1733841624532,0.36086,97266.0,97265.0,0.00010687]